Workbook

Sheet Sheet1
A1: 附件：
A2: 江口县2025年公开招聘事业单位工作人员考试总成绩
A3: 序号 | B3: 姓名 | C3: 性别 | D3: 报考单位 | E3: 岗位名称 | F3: 笔试 成绩 | G3: 笔试折算成绩 | H3: 面试 成绩 | I3: 面试折算成绩 | J3: 总成绩 | K3: 排名 | L3: 是否拟进入体检 | M3: 备注
A4: 1 | B4: 陈巧珍 | C4: 女 | D4: 0501江口县土地开发整理中心 | E4: 22205050101（专业技术人员） | F4: 205 | G4: =(F4/3)*0.6 -> 41.00 | H4: 81.20 | I4: =H4*0.4 -> 32.48 | J4: =G4+I4 -> 73.48 | K4: 1 | L4: 是
A5: 2 | B5: 何紫薇 | C5: 女 | D5: 0501江口县土地开发整理中心 | E5: 22205050101（专业技术人员） | F5: 189 | G5: =(F5/3)*0.6 -> 37.80 | H5: 80.68 | I5: =H5*0.4 -> 32.27 | J5: =G5+I5 -> 70.07 | K5: 2 | L5: 否
A6: 3 | B6: 申伟 | C6: 男 | D6: 0501江口县土地开发整理中心 | E6: 22205050101（专业技术人员） | F6: 178 | G6: 35.60 | H6: 缺考 | I6: 0.00 | J6: 35.60 | K6: 3 | L6: 否
A7: 4 | B7: 涂泽峰 | C7: 男 | D7: 0502江口县凯德街道自然资源所 | E7: 22205050202（工作人员） | F7: 193 | G7: 38.60 | H7: 79.34 | I7: =H7*0.4 -> 31.74 | J7: 70.34 | K7: 1 | L7: 是
A8: 5 | B8: 黄曼婕 | C8: 女 | D8: 0502江口县凯德街道自然资源所 | E8: 22205050202（工作人员） | F8: 179.5 | G8: 35.90 | H8: 80.40 | I8: =H8*0.4 -> 32.16 | J8: 68.06 | K8: 2 | L8: 否
A9: 6 | B9: 向嫚婷 | C9: 女 | D9: 0502江口县凯德街道自然资源所 | E9: 22205050202（工作人员） | F9: 172.5 | G9: 34.50 | H9: 缺考 | I9: 0.00 | J9: 34.50 | K9: 3 | L9: 否
A10: 7 | B10: 杨铜琴 | C10: 女 | D10: 0503江口县融媒体中心 | E10: 22205050303（专业技术人员） | F10: 202.5 | G10: 40.50 | H10: 77.00 | I10: =H10*0.4 -> 30.80 | J10: 71.30 | K10: 1 | L10: 是
A11: 8 | B11: 陈佳 | C11: 女 | D11: 0503江口县融媒体中心 | E11: 22205050303（专业技术人员） | F11: 193 | G11: 38.60 | H11: 78.00 | I11: =H11*0.4 -> 31.20 | J11: 69.80 | K11: 2 | L11: 否
A12: 9 | B12: 杨永凤 | C12: 女 | D12: 0503江口县融媒体中心 | E12: 22205050303（专业技术人员） | F12: 182.5 | G12: 36.50 | H12: 76.86 | I12: =H12*0.4 -> 30.74 | J12: 67.24 | K12: 3 | L12: 否
A13: 10 | B13: 周姣姣 | C13: 女 | D13: 0503江口县融媒体中心 | E13: 22205050304（专业技术人员） | F13: 210 | G13: 42.00 | H13: 80.94 | I13: 32.38 | J13: 74.38 | K13: 1 | L13: 是
A14: 11 | B14: 卫佳 | C14: 男 | D14: 0503江口县融媒体中心 | E14: 22205050304（专业技术人员） | F14: 209.5 | G14: =(F14/3)*0.6 -> 41.90 | H14: 76.74 | I14: 30.70 | J14: 72.60 | K14: 2 | L14: 否
A15: 12 | B15: 申琴 | C15: 女 | D15: 0503江口县融媒体中心 | E15: 22205050304（专业技术人员） | F15: 204.5 | G15: 40.90 | H15: 缺考 | I15: 0.00 | J15: 40.90 | K15: 3 | L15: 否
A16: 13 | B16: 杨海 | C16: 男 | D16: 0504江口县水务工程服务站 | E16: 22205050405（专业技术人员） | F16: 210.5 | G16: 42.10 | H16: 76.32 | I16: =H16*0.4 -> 30.53 | J16: 72.63 | K16: 1 | L16: 是
A17: 14 | B17: 孙其昌 | C17: 男 | D17: 0504江口县水务工程服务站 | E17: 22205050405（专业技术人员） | F17: 197 | G17: 39.40 | H17: 76.58 | I17: =H17*0.4 -> 30.63 | J17: 70.03 | K17: 2 | L17: 否
A18: 15 | B18: 代兴文 | C18: 男 | D18: 0504江口县水务工程服务站 | E18: 22205050405（专业技术人员） | F18: 191 | G18: 38.20 | H18: 77.66 | I18: 31.06 | J18: 69.26 | K18: 3 | L18: 否
A19: 16 | B19: 胡鹏 | C19: 男 | D19: 0505江口县鱼粮水库工作站 | E19: 22205050506（专业技术人员） | F19: 175 | G19: 35.00 | H19: 78.34 | I19: 31.34 | J19: 66.34 | K19: 1 | L19: 是
A20: 17 | B20: 姜琴 | C20: 女 | D20: 0505江口县鱼粮水库工作站 | E20: 22205050506（专业技术人员） | F20: 160.5 | G20: 32.10 | H20: 78.96 | I20: 31.58 | J20: 63.68 | K20: 2 | L20: 否
A21: 18 | B21: 龙友 | C21: 男 | D21: 0505江口县鱼粮水库工作站 | E21: 22205050506（专业技术人员） | F21: 160 | G21: 32.00 | H21: 77.18 | I21: 30.87 | J21: 62.87 | K21: 3 | L21: 否
A22: 19 | B22: 杨荣丝 | C22: 女 | D22: 0506江口县疾病预防控制中心 | E22: 22205050607（专业技术人员） | F22: 164.4 | G22: 32.88 | H22: 80.50 | I22: 32.20 | J22: 65.08 | K22: 1 | L22: 是
A23: 20 | B23: 赵庆义 | C23: 女 | D23: 0506江口县疾病预防控制中心 | E23: 22205050607（专业技术人员） | F23: 159.6 | G23: 31.92 | H23: 80.56 | I23: 32.22 | J23: 64.14 | K23: 2 | L23: 是
A24: 21 | B24: 张艺 | C24: 女 | D24: 0506江口县疾病预防控制中心 | E24: 22205050607（专业技术人员） | F24: 154.6 | G24: 30.92 | H24: 80.86 | I24: 32.34 | J24: 63.26 | K24: 3 | L24: 否
A25: 22 | B25: 陈钰挺 | C25: 男 | D25: 0506江口县疾病预防控制中心 | E25: 22205050607（专业技术人员） | F25: 157.3 | G25: 31.46 | H25: 78.48 | I25: 31.39 | J25: 62.85 | K25: 4 | L25: 否
A26: 23 | B26: 杨政溢 | C26: 男 | D26: 0506江口县疾病预防控制中心 | E26: 22205050607（专业技术人员） | F26: 149.5 | G26: 29.90 | H26: 78.78 | I26: 31.51 | J26: 61.41 | K26: 5 | L26: 否
A27: 24 | B27: 兰国辉 | C27: 男 | D27: 0506江口县疾病预防控制中心 | E27: 22205050607（专业技术人员） | F27: 178.4 | G27: 35.68 | H27: 缺考 | I27: 0.00 | J27: 35.68 | K27: 6 | L27: 否
A28: 25 | B28: 杨康 | C28: 男 | D28: 0507江口县人民医院 | E28: 22205050709（临床药师） | F28: 190 | G28: =(F28/3)*0.6 -> 38.00 | H28: 81.38 | I28: 32.55 | J28: 70.55 | K28: 1 | L28: 是
A29: 26 | B29: 谯璇 | C29: 男 | D29: 0507江口县人民医院 | E29: 22205050709（临床药师） | F29: 158.2 | G29: 31.64 | H29: 缺考 | I29: 0.00 | J29: 31.64 | K29: 2 | L29: 否
A30: 27 | B30: 曾爱芬 | C30: 女 | D30: 0507江口县人民医院 | E30: 22205050709（临床药师） | F30: 151.4 | G30: 30.28 | H30: 缺考 | I30: 0.00 | J30: 30.28 | K30: 3 | L30: 否
A31: 28 | B31: 王姜 | C31: 女 | D31: 0507江口县人民医院 | E31: 22205050710（会计） | F31: 197.5 | G31: 39.50 | H31: 80.24 | I31: =H31*0.4 -> 32.10 | J31: 71.60 | K31: 1 | L31: 是
A32: 29 | B32: 杨建玲 | C32: 女 | D32: 0507江口县人民医院 | E32: 22205050710（会计） | F32: 198 | G32: 39.60 | H32: 77.50 | I32: =H32*0.4 -> 31.00 | J32: 70.60 | K32: 2 | L32: 否
A33: 30 | B33: 刘鑫 | C33: 女 | D33: 0507江口县人民医院 | E33: 22205050710（会计） | F33: 201 | G33: 40.20 | H33: 缺考 | I33: 0.00 | J33: 40.20 | K33: 3 | L33: 否
A34: 31 | B34: 田松 | C34: 男 | D34: 0507江口县人民医院 | E34: 22205050711（工作人员） | F34: 169 | G34: 33.80 | H34: 78.80 | I34: =H34*0.4 -> 31.52 | J34: 65.32 | K34: 1 | L34: 是
A35: 32 | B35: 彭先 | C35: 男 | D35: 0507江口县人民医院 | E35: 22205050711（工作人员） | F35: 162 | G35: 32.40 | H35: 76.80 | I35: 30.72 | J35: 63.12 | K35: 2 | L35: 否
A36: 33 | B36: 唐小然 | C36: 女 | D36: 0508江口县怒溪镇综合治理服务中心 | E36: 22205050812（工作人员） | F36: 208 | G36: 41.60 | H36: 77.16 | I36: 30.86 | J36: 72.46 | K36: 1 | L36: 是
A37: 34 | B37: 梁群洁 | C37: 女 | D37: 0508江口县怒溪镇综合治理服务中心 | E37: 22205050812（工作人员） | F37: 181.5 | G37: 36.30 | H37: 75.26 | I37: 30.10 | J37: 66.40 | K37: 2 | L37: 否
A38: 35 | B38: 车谜 | C38: 女 | D38: 0508江口县怒溪镇综合治理服务中心 | E38: 22205050812（工作人员） | F38: 181.5 | G38: 36.30 | H38: 74.58 | I38: 29.83 | J38: 66.13 | K38: 3 | L38: 否
A39: 36 | B39: 周艳 | C39: 女 | D39: 0509江口县怒溪镇农业农村综合服务中心 | E39: 22205050913（工作人员） | F39: 192.5 | G39: 38.50 | H39: 80.60 | I39: 32.24 | J39: 70.74 | K39: 1 | L39: 是
A40: 37 | B40: 刘亮志 | C40: 男 | D40: 0509江口县怒溪镇农业农村综合服务中心 | E40: 22205050913（工作人员） | F40: 192.5 | G40: 38.50 | H40: 76.54 | I40: 30.62 | J40: 69.12 | K40: 2 | L40: 否
A41: 38 | B41: 杨玲 | C41: 女 | D41: 0509江口县怒溪镇农业农村综合服务中心 | E41: 22205050913（工作人员） | F41: 194 | G41: 38.80 | H41: 缺考 | I41: 0.00 | J41: 38.80 | K41: 3 | L41: 否
A42: 39 | B42: 向铭威 | C42: 男 | D42: 0509江口县怒溪镇农业农村综合服务中心 | E42: 22205050915（专业技术人员） | F42: 168 | G42: 33.60 | H42: 76.06 | I42: =H42*0.4 -> 30.42 | J42: 64.02 | K42: 1 | L42: 是
A43: 40 | B43: 文子伟 | C43: 男 | D43: 0509江口县怒溪镇农业农村综合服务中心 | E43: 22205050915（专业技术人员） | F43: 158.5 | G43: 31.70 | H43: 77.16 | I43: 30.86 | J43: 62.56 | K43: 2 | L43: 否
A44: 41 | B44: 蒋秀宇 | C44: 男 | D44: 0509江口县怒溪镇农业农村综合服务中心 | E44: 22205050915（专业技术人员） | F44: 150.5 | G44: 30.10 | H44: 76.58 | I44: 30.63 | J44: 60.73 | K44: 3 | L44: 否
A45: 42 | B45: 安小芳 | C45: 女 | D45: 0510江口县德旺乡党务政务服务中心 | E45: 22205051016（工作人员） | F45: 196.5 | G45: 39.30 | H45: 81.08 | I45: 32.43 | J45: 71.73 | K45: 1 | L45: 是
A46: 43 | B46: 向珍珍 | C46: 女 | D46: 0510江口县德旺乡党务政务服务中心 | E46: 22205051016（工作人员） | F46: 177.5 | G46: 35.50 | H46: 78.96 | I46: 31.58 | J46: 67.08 | K46: 2 | L46: 否
A47: 44 | B47: 张美龄 | C47: 女 | D47: 0510江口县德旺乡党务政务服务中心 | E47: 22205051016（工作人员） | F47: 175 | G47: 35.00 | H47: 78.12 | I47: 31.25 | J47: 66.25 | K47: 3 | L47: 否
A48: 45 | B48: 徐萍 | C48: 女 | D48: 0510江口县德旺乡党务政务服务中心 | E48: 22205051017（专业技术人员） | F48: 221 | G48: 44.20 | H48: 76.70 | I48: 30.68 | J48: 74.88 | K48: 1 | L48: 是
A49: 46 | B49: 杨董华 | C49: 男 | D49: 0510江口县德旺乡党务政务服务中心 | E49: 22205051017（专业技术人员） | F49: 200 | G49: 40.00 | H49: 76.74 | I49: 30.70 | J49: 70.70 | K49: 2 | L49: 否
A50: 47 | B50: 陈梅 | C50: 女 | D50: 0510江口县德旺乡党务政务服务中心 | E50: 22205051017（专业技术人员） | F50: 195.5 | G50: 39.10 | H50: 76.66 | I50: 30.66 | J50: 69.76 | K50: 3 | L50: 否
A51: 48 | B51: 王小敏 | C51: 女 | D51: 0511江口县德旺乡农业农村综合服务中心 | E51: 22205051118（专业技术人员） | F51: 200.5 | G51: 40.10 | H51: 77.50 | I51: 31.00 | J51: 71.10 | K51: 1 | L51: 是
A52: 49 | B52: 谭树年 | C52: 女 | D52: 0511江口县德旺乡农业农村综合服务中心 | E52: 22205051118（专业技术人员） | F52: 193 | G52: 38.60 | H52: 77.90 | I52: 31.16 | J52: 69.76 | K52: 2 | L52: 是
A53: 50 | B53: 阮珊珊 | C53: 女 | D53: 0511江口县德旺乡农业农村综合服务中心 | E53: 22205051118（专业技术人员） | F53: 188.5 | G53: 37.70 | H53: 78.66 | I53: 31.46 | J53: 69.16 | K53: 3 | L53: 是
A54: 51 | B54: 张紫瑞 | C54: 女 | D54: 0511江口县德旺乡农业农村综合服务中心 | E54: 22205051118（专业技术人员） | F54: 185 | G54: 37.00 | H54: 79.36 | I54: 31.74 | J54: 68.74 | K54: 4 | L54: 是
A55: 52 | B55: 刘宗莎 | C55: 女 | D55: 0511江口县德旺乡农业农村综合服务中心 | E55: 22205051118（专业技术人员） | F55: 182.5 | G55: 36.50 | H55: 77.02 | I55: 30.81 | J55: 67.31 | K55: 5 | L55: 是
A56: 53 | B56: 刘涵 | C56: 男 | D56: 0511江口县德旺乡农业农村综合服务中心 | E56: 22205051118（专业技术人员） | F56: 174 | G56: 34.80 | H56: 78.52 | I56: 31.41 | J56: 66.21 | K56: 6 | L56: 否
A57: 54 | B57: 文智 | C57: 男 | D57: 0511江口县德旺乡农业农村综合服务中心 | E57: 22205051118（专业技术人员） | F57: 160 | G57: 32.00 | H57: 78.10 | I57: 31.24 | J57: 63.24 | K57: 7 | L57: 否
A58: 55 | B58: 姚慧 | C58: 女 | D58: 0511江口县德旺乡农业农村综合服务中心 | E58: 22205051118（专业技术人员） | F58: 160.5 | G58: 32.10 | H58: 75.76 | I58: 30.30 | J58: 62.40 | K58: 8 | L58: 否
A59: 56 | B59: 刘溁 | C59: 女 | D59: 0511江口县德旺乡农业农村综合服务中心 | E59: 22205051118（专业技术人员） | F59: 167.5 | G59: 33.50 | H59: 71.68 | I59: 28.67 | J59: 62.17 | K59: 9 | L59: 否
A60: 57 | B60: 罗义云 | C60: 女 | D60: 0511江口县德旺乡农业农村综合服务中心 | E60: 22205051118（专业技术人员） | F60: 147 | G60: 29.40 | H60: 76.98 | I60: 30.79 | J60: 60.19 | K60: 10 | L60: 否
A61: 58 | B61: 杨雪婧 | C61: 女 | D61: 0511江口县德旺乡农业农村综合服务中心 | E61: 22205051118（专业技术人员） | F61: 150 | G61: 30.00 | H61: 74.50 | I61: 29.80 | J61: 59.80 | K61: 11 | L61: 否
A62: 59 | B62: 杨桃菊 | C62: 女 | D62: 0511江口县德旺乡农业农村综合服务中心 | E62: 22205051118（专业技术人员） | F62: 147 | G62: 29.40 | H62: 73.12 | I62: 29.25 | J62: 58.65 | K62: 12 | L62: 否
A63: 60 | B63: 米娜 | C63: 女 | D63: 0511江口县德旺乡农业农村综合服务中心 | E63: 22205051118（专业技术人员） | F63: 154 | G63: 30.80 | H63: 缺考 | I63: 0.00 | J63: 30.80 | K63: 13 | L63: 否
A64: 61 | B64: 罗欣 | C64: 女 | D64: 0511江口县德旺乡农业农村综合服务中心 | E64: 22205051118（专业技术人员） | F64: 145.5 | G64: 29.10 | H64: 缺考 | I64: 0.00 | J64: 29.10 | K64: 14 | L64: 否
A65: 62 | B65: 田紫 | C65: 女 | D65: 0512江口县民和镇党务政务服务中心 | E65: 22205051219（工作人员） | F65: 216 | G65: 43.20 | H65: 80.50 | I65: =H65*0.4 -> 32.20 | J65: 75.40 | K65: 1 | L65: 是
A66: 63 | B66: 杨洋 | C66: 女 | D66: 0512江口县民和镇党务政务服务中心 | E66: 22205051219（工作人员） | F66: 192.5 | G66: 38.50 | H66: 77.62 | I66: =H66*0.4 -> 31.05 | J66: 69.55 | K66: 2 | L66: 否
A67: 64 | B67: 孟慢 | C67: 女 | D67: 0512江口县民和镇党务政务服务中心 | E67: 22205051219（工作人员） | F67: 191.5 | G67: 38.30 | H67: 76.86 | I67: 30.74 | J67: 69.04 | K67: 3 | L67: 否
A68: 65 | B68: 刘灵 | C68: 女 | D68: 0513江口县民和镇综合治理服务中心 | E68: 22205051320（工作人员） | F68: 189 | G68: 37.80 | H68: 81.04 | I68: 32.42 | J68: 70.22 | K68: 1 | L68: 是
A69: 66 | B69: 姚双琴 | C69: 女 | D69: 0513江口县民和镇综合治理服务中心 | E69: 22205051320（工作人员） | F69: 184 | G69: 36.80 | H69: 78.04 | I69: 31.22 | J69: =G69+I69 -> 68.02 | K69: 2 | L69: 是
A70: 67 | B70: 刘阳 | C70: 男 | D70: 0513江口县民和镇综合治理服务中心 | E70: 22205051320（工作人员） | F70: 178.5 | G70: 35.70 | H70: 79.42 | I70: 31.77 | J70: 67.47 | K70: 3 | L70: 否
A71: 68 | B71: 孙中萍 | C71: 女 | D71: 0513江口县民和镇综合治理服务中心 | E71: 22205051320（工作人员） | F71: 177.5 | G71: 35.50 | H71: 77.96 | I71: 31.18 | J71: 66.68 | K71: 4 | L71: 否
A72: 69 | B72: 伍金天 | C72: 男 | D72: 0513江口县民和镇综合治理服务中心 | E72: 22205051320（工作人员） | F72: 176.5 | G72: 35.30 | H72: 75.71 | I72: 30.28 | J72: 65.58 | K72: 5 | L72: 否
A73: 70 | B73: 雷露 | C73: 女 | D73: 0513江口县民和镇综合治理服务中心 | E73: 22205051320（工作人员） | F73: 175 | G73: 35.00 | H73: 缺考 | I73: 0.00 | J73: 35.00 | K73: 6 | L73: 否
A74: 71 | B74: 杨秋爽 | C74: 男 | D74: 0514江口县官和乡综合治理服务中心 | E74: 22205051421（专业技术人员） | F74: 192.5 | G74: 38.50 | H74: 78.50 | I74: =H74*0.4 -> 31.40 | J74: 69.90 | K74: 1 | L74: 是
A75: 72 | B75: 李云坤 | C75: 男 | D75: 0514江口县官和乡综合治理服务中心 | E75: 22205051421（专业技术人员） | F75: 193.5 | G75: 38.70 | H75: 77.56 | I75: =H75*0.4 -> 31.02 | J75: 69.72 | K75: 2 | L75: 否
A76: 73 | B76: 严浩 | C76: 男 | D76: 0514江口县官和乡综合治理服务中心 | E76: 22205051421（专业技术人员） | F76: 183 | G76: 36.60 | H76: 缺考 | I76: 0.00 | J76: 36.60 | K76: 3 | L76: 否
A77: 74 | B77: 肖芝琪 | C77: 男 | D77: 0515江口县闵孝镇农业农村综合服务中心 | E77: 22205051522（专业技术人员） | F77: 203 | G77: 40.60 | H77: 76.62 | I77: =H77*0.4 -> 30.65 | J77: 71.25 | K77: 1 | L77: 是
A78: 75 | B78: 李海峰 | C78: 男 | D78: 0515江口县闵孝镇农业农村综合服务中心 | E78: 22205051522（专业技术人员） | F78: 197.5 | G78: 39.50 | H78: 76.72 | I78: =H78*0.4 -> 30.69 | J78: 70.19 | K78: 2 | L78: 否
A79: 76 | B79: 王秋鳗 | C79: 女 | D79: 0515江口县闵孝镇农业农村综合服务中心 | E79: 22205051522（专业技术人员） | F79: 173 | G79: 34.60 | H79: 77.92 | I79: =H79*0.4 -> 31.17 | J79: 65.77 | K79: 3 | L79: 否
A80: 77 | B80: 黄天业 | C80: 男 | D80: 0516江口县闵孝镇综合治理服务中心 | E80: 22205051623（工作人员） | F80: 200 | G80: 40.00 | H80: 81.56 | I80: 32.62 | J80: 72.62 | K80: 1 | L80: 是
A81: 78 | B81: 胡琼 | C81: 女 | D81: 0516江口县闵孝镇综合治理服务中心 | E81: 22205051623（工作人员） | F81: 202 | G81: 40.40 | H81: 76.72 | I81: 30.69 | J81: 71.09 | K81: 2 | L81: 否
A82: 79 | B82: 白高任 | C82: 男 | D82: 0516江口县闵孝镇综合治理服务中心 | E82: 22205051623（工作人员） | F82: 198 | G82: 39.60 | H82: 76.04 | I82: 30.42 | J82: 70.02 | K82: 3 | L82: 否
A83: 80 | B83: 吴磊 | C83: 男 | D83: 0516江口县闵孝镇综合治理服务中心 | E83: 22205051624（工作人员） | F83: 203 | G83: 40.60 | H83: 76.28 | I83: 30.51 | J83: 71.11 | K83: 1 | L83: 是
A84: 81 | B84: 邢开程 | C84: 男 | D84: 0516江口县闵孝镇综合治理服务中心 | E84: 22205051624（工作人员） | F84: 184.5 | G84: 36.90 | H84: 76.86 | I84: 30.74 | J84: 67.64 | K84: 2 | L84: 否
A85: 82 | B85: 田熠 | C85: 男 | D85: 0516江口县闵孝镇综合治理服务中心 | E85: 22205051624（工作人员） | F85: 183.5 | G85: 36.70 | H85: 缺考 | I85: 0.00 | J85: =G85+I85 -> 36.70 | K85: 3 | L85: 否
A86: 83 | B86: 吴仪 | C86: 女 | D86: 0516江口县闵孝镇综合治理服务中心 | E86: 22205051625（工作人员） | F86: 197 | G86: 39.40 | H86: 79.76 | I86: =H86*0.4 -> 31.90 | J86: 71.30 | K86: 1 | L86: 是
A87: 84 | B87: 金敬华 | C87: 男 | D87: 0516江口县闵孝镇综合治理服务中心 | E87: 22205051625（工作人员） | F87: 187 | G87: 37.40 | H87: 71.54 | I87: =H87*0.4 -> 28.62 | J87: 66.02 | K87: 2 | L87: 否
A88: 85 | B88: 胡江坤 | C88: 男 | D88: 0516江口县闵孝镇综合治理服务中心 | E88: 22205051625（工作人员） | F88: 168 | G88: 33.60 | H88: 缺考 | I88: 0.00 | J88: 33.60 | K88: 3 | L88: 否
A89: 86 | B89: 游安靖 | C89: 男 | D89: 0517江口县桃映镇综合治理服务中心 | E89: 22205051726（工作人员） | F89: 197.5 | G89: 39.50 | H89: 79.28 | I89: =H89*0.4 -> 31.71 | J89: 71.21 | K89: 1 | L89: 是
A90: 87 | B90: 刘幸子 | C90: 女 | D90: 0517江口县桃映镇综合治理服务中心 | E90: 22205051726（工作人员） | F90: 197 | G90: 39.40 | H90: 79.44 | I90: 31.78 | J90: 71.18 | K90: 2 | L90: 否
A91: 88 | B91: 张玲霞 | C91: 女 | D91: 0517江口县桃映镇综合治理服务中心 | E91: 22205051726（工作人员） | F91: 193.5 | G91: 38.70 | H91: 79.26 | I91: 31.70 | J91: 70.40 | K91: 3 | L91: 否
A92: 89 | B92: 罗喻盈 | C92: 女 | D92: 0517江口县桃映镇综合治理服务中心 | E92: 22205051726（工作人员） | F92: 193.5 | G92: =(F92/3)*0.6 -> 38.70 | H92: 78.82 | I92: 31.53 | J92: 70.23 | K92: 4 | L92: 否
A93: 90 | B93: 吴艳萍 | C93: 女 | D93: 0518江口县桃映镇农业农村综合服务中心 | E93: 22205051827（专业技术人员） | F93: 198 | G93: 39.60 | H93: 77.42 | I93: 30.97 | J93: 70.57 | K93: 1 | L93: 是
A94: 91 | B94: 吴猛龙 | C94: 男 | D94: 0518江口县桃映镇农业农村综合服务中心 | E94: 22205051827（专业技术人员） | F94: 183 | G94: 36.60 | H94: 79.18 | I94: 31.67 | J94: 68.27 | K94: 2 | L94: 是
A95: 92 | B95: 杨正利 | C95: 男 | D95: 0518江口县桃映镇农业农村综合服务中心 | E95: 22205051827（专业技术人员） | F95: 180.5 | G95: 36.10 | H95: 77.78 | I95: 31.11 | J95: 67.21 | K95: 3 | L95: 否
A96: 93 | B96: 任杰 | C96: 男 | D96: 0518江口县桃映镇农业农村综合服务中心 | E96: 22205051827（专业技术人员） | F96: 169.5 | G96: 33.90 | H96: 74.96 | I96: 29.98 | J96: 63.88 | K96: 4 | L96: 否
A97: 94 | B97: 唐小丽 | C97: 女 | D97: 0518江口县桃映镇农业农村综合服务中心 | E97: 22205051827（专业技术人员） | F97: 162 | G97: 32.40 | H97: 73.92 | I97: 29.57 | J97: 61.97 | K97: 5 | L97: 否
A98: 95 | B98: 肖童 | C98: 男 | D98: 0518江口县桃映镇农业农村综合服务中心 | E98: 22205051827（专业技术人员） | F98: 160 | G98: 32.00 | H98: 74.08 | I98: 29.63 | J98: 61.63 | K98: 6 | L98: 否
A99: 96 | B99: 周玲丽 | C99: 女 | D99: 0519江口县桃映镇综合执法队 | E99: 22205051928（工作人员） | F99: 206.5 | G99: 41.30 | H99: 76.04 | I99: 30.42 | J99: 71.72 | K99: 1 | L99: 是
A100: 97 | B100: 万颜慷 | C100: 男 | D100: 0519江口县桃映镇综合执法队 | E100: 22205051928（工作人员） | F100: 212.5 | G100: 42.50 | H100: 缺考 | I100: 0.00 | J100: 42.50 | K100: 2 | L100: 否
A101: 98 | B101: 李明 | C101: 男 | D101: 0519江口县桃映镇综合执法队 | E101: 22205051928（工作人员） | F101: 204 | G101: 40.80 | H101: 缺考 | I101: 0.00 | J101: 40.80 | K101: 3 | L101: 否
A102: 99 | B102: 黄小琴 | C102: 女 | D102: 0520江口县乡镇所属事业单位 | E102: 22205052029（工作人员） | F102: 202.5 | G102: 40.50 | H102: 79.68 | I102: =H102*0.4 -> 31.87 | J102: 72.37 | K102: 1 | L102: 是
A103: 100 | B103: 钟娜 | C103: 女 | D103: 0520江口县乡镇所属事业单位 | E103: 22205052029（工作人员） | F103: 197.5 | G103: 39.50 | H103: 76.70 | I103: 30.68 | J103: 70.18 | K103: 2 | L103: 是
A104: 101 | B104: 谭玉 | C104: 女 | D104: 0520江口县乡镇所属事业单位 | E104: 22205052029（工作人员） | F104: 197 | G104: 39.40 | H104: 75.58 | I104: 30.23 | J104: 69.63 | K104: 3 | L104: 是
A105: 102 | B105: 刘锛 | C105: 男 | D105: 0520江口县乡镇所属事业单位 | E105: 22205052029（工作人员） | F105: 196 | G105: 39.20 | H105: 75.90 | I105: 30.36 | J105: 69.56 | K105: 4 | L105: 否
A106: 103 | B106: 周璇 | C106: 女 | D106: 0520江口县乡镇所属事业单位 | E106: 22205052029（工作人员） | F106: 190 | G106: 38.00 | H106: 76.20 | I106: 30.48 | J106: 68.48 | K106: 5 | L106: 否
A107: 104 | B107: 谭如意 | C107: 女 | D107: 0520江口县乡镇所属事业单位 | E107: 22205052029（工作人员） | F107: 184 | G107: 36.80 | H107: 77.88 | I107: 31.15 | J107: 67.95 | K107: 6 | L107: 否
A108: 105 | B108: 田婷 | C108: 女 | D108: 0520江口县乡镇所属事业单位 | E108: 22205052029（工作人员） | F108: 181 | G108: 36.20 | H108: 77.58 | I108: 31.03 | J108: 67.23 | K108: 7 | L108: 否
A109: 106 | B109: 王思琦 | C109: 女 | D109: 0520江口县乡镇所属事业单位 | E109: 22205052029（工作人员） | F109: 212.5 | G109: 42.50 | H109: 缺考 | I109: 0.00 | J109: 42.50 | K109: 8 | L109: 否
A110: 107 | B110: 严晓媛 | C110: 女 | D110: 0520江口县乡镇所属事业单位 | E110: 22205052029（工作人员） | F110: 196 | G110: 39.20 | H110: 缺考 | I110: 0.00 | J110: 39.20 | K110: 9 | L110: 否
A111: 108 | B111: 吴彪 | C111: 男 | D111: 0521江口县乡镇（街道）综合治理服务中心 | E111: 22205052130（工作人员） | F111: 203.5 | G111: 40.70 | H111: 78.44 | I111: =H111*0.4 -> 31.38 | J111: 72.08 | K111: 1 | L111: 是
A112: 109 | B112: 陈俊杰 | C112: 男 | D112: 0521江口县乡镇（街道）综合治理服务中心 | E112: 22205052130（工作人员） | F112: 194.5 | G112: 38.90 | H112: 76.58 | I112: 30.63 | J112: 69.53 | K112: 2 | L112: 是
A113: 110 | B113: 杨子奇 | C113: 男 | D113: 0521江口县乡镇（街道）综合治理服务中心 | E113: 22205052130（工作人员） | F113: 194.5 | G113: 38.90 | H113: 76.30 | I113: 30.52 | J113: 69.42 | K113: 3 | L113: 否
A114: 111 | B114: 杨闯 | C114: 男 | D114: 0521江口县乡镇（街道）综合治理服务中心 | E114: 22205052130（工作人员） | F114: 185.5 | G114: 37.10 | H114: 74.76 | I114: 29.90 | J114: 67.00 | K114: 4 | L114: 否
A115: 112 | B115: 张荐明 | C115: 男 | D115: 0521江口县乡镇（街道）综合治理服务中心 | E115: 22205052130（工作人员） | F115: 181.5 | G115: 36.30 | H115: 74.10 | I115: 29.64 | J115: 65.94 | K115: 5 | L115: 否
A116: 113 | B116: 姚农昊 | C116: 男 | D116: 0522江口县乡镇农业农村综合服务中心 | E116: 22205052231（专业技术人员） | F116: 209.5 | G116: 41.90 | H116: 78.12 | I116: 31.25 | J116: 73.15 | K116: 1 | L116: 是
A117: 114 | B117: 杨力瑾 | C117: 女 | D117: 0522江口县乡镇农业农村综合服务中心 | E117: 22205052231（专业技术人员） | F117: 197 | G117: 39.40 | H117: 76.52 | I117: 30.61 | J117: 70.01 | K117: 2 | L117: 是
A118: 115 | B118: 胡峰玮 | C118: 男 | D118: 0522江口县乡镇农业农村综合服务中心 | E118: 22205052231（专业技术人员） | F118: 184 | G118: 36.80 | H118: 81.54 | I118: 32.62 | J118: 69.42 | K118: 3 | L118: 是
A119: 116 | B119: 强力铭 | C119: 男 | D119: 0522江口县乡镇农业农村综合服务中心 | E119: 22205052231（专业技术人员） | F119: 189.5 | G119: 37.90 | H119: 78.24 | I119: 31.30 | J119: 69.20 | K119: 4 | L119: 是
A120: 117 | B120: 徐松艳 | C120: 女 | D120: 0522江口县乡镇农业农村综合服务中心 | E120: 22205052231（专业技术人员） | F120: 185.5 | G120: 37.10 | H120: 75.98 | I120: 30.39 | J120: 67.49 | K120: 5 | L120: 否
A121: 118 | B121: 谭清清 | C121: 女 | D121: 0522江口县乡镇农业农村综合服务中心 | E121: 22205052231（专业技术人员） | F121: 185.5 | G121: 37.10 | H121: 75.38 | I121: 30.15 | J121: 67.25 | K121: 6 | L121: 否
A122: 119 | B122: 毛娇 | C122: 女 | D122: 0522江口县乡镇农业农村综合服务中心 | E122: 22205052231（专业技术人员） | F122: 181 | G122: 36.20 | H122: 74.20 | I122: 29.68 | J122: 65.88 | K122: 7 | L122: 否
A123: 120 | B123: 代丽艳 | C123: 女 | D123: 0522江口县乡镇农业农村综合服务中心 | E123: 22205052231（专业技术人员） | F123: 167 | G123: 33.40 | H123: 80.80 | I123: 32.32 | J123: 65.72 | K123: 8 | L123: 否
A124: 121 | B124: 张安妮 | C124: 女 | D124: 0522江口县乡镇农业农村综合服务中心 | E124: 22205052231（专业技术人员） | F124: 172.5 | G124: 34.50 | H124: 75.60 | I124: 30.24 | J124: 64.74 | K124: 9 | L124: 否
A125: 122 | B125: 黄秋月 | C125: 女 | D125: 0522江口县乡镇农业农村综合服务中心 | E125: 22205052231（专业技术人员） | F125: 167 | G125: 33.40 | H125: 75.34 | I125: 30.14 | J125: 63.54 | K125: 10 | L125: 否
A126: 123 | B126: 张颖 | C126: 女 | D126: 0522江口县乡镇农业农村综合服务中心 | E126: 22205052231（专业技术人员） | F126: 169 | G126: 33.80 | H126: 71.76 | I126: 28.70 | J126: 62.50 | K126: 11 | L126: 否
A127: 124 | B127: 冉静 | C127: 女 | D127: 0522江口县乡镇农业农村综合服务中心 | E127: 22205052231（专业技术人员） | F127: 165.5 | G127: 33.10 | H127: 缺考 | I127: 0.00 | J127: 33.10 | K127: 12 | L127: 否
A128: 125 | B128: 石莉琳 | C128: 女 | D128: 0523江口县乡镇（街道）所属事业单位 | E128: 22205052332（专业技术人员） | F128: 194 | G128: 38.80 | H128: 78.48 | I128: =H128*0.4 -> 31.39 | J128: 70.19 | K128: 1 | L128: 是
A129: 126 | B129: 张寅 | C129: 女 | D129: 0523江口县乡镇（街道）所属事业单位 | E129: 22205052332（专业技术人员） | F129: 190 | G129: 38.00 | H129: 77.88 | I129: 31.15 | J129: 69.15 | K129: 2 | L129: 是
A130: 127 | B130: 王佳玲 | C130: 女 | D130: 0523江口县乡镇（街道）所属事业单位 | E130: 22205052332（专业技术人员） | F130: 192.5 | G130: 38.50 | H130: 75.16 | I130: 30.06 | J130: 68.56 | K130: 3 | L130: 否
A131: 128 | B131: 雷玉萍 | C131: 女 | D131: 0523江口县乡镇（街道）所属事业单位 | E131: 22205052332（专业技术人员） | F131: 165.5 | G131: 33.10 | H131: 74.38 | I131: 29.75 | J131: 62.85 | K131: 4 | L131: 否
A132: 129 | B132: 张静怡 | C132: 女 | D132: 0523江口县乡镇（街道）所属事业单位 | E132: 22205052332（专业技术人员） | F132: 158 | G132: 31.60 | H132: 75.04 | I132: 30.02 | J132: 61.62 | K132: 5 | L132: 否
A133: 130 | B133: 刘森 | C133: 男 | D133: 0524江口中学 | E133: 22205052433（数学教师） | F133: 186 | G133: 37.20 | H133: 77.00 | I133: 30.80 | J133: 68.00 | K133: 1 | L133: 是
A134: 131 | B134: 陈博文 | C134: 男 | D134: 0524江口中学 | E134: 22205052433（数学教师） | F134: 160.5 | G134: 32.10 | H134: 85.24 | I134: 34.10 | J134: 66.20 | K134: 2 | L134: 是
A135: 132 | B135: 张宽 | C135: 男 | D135: 0524江口中学 | E135: 22205052433（数学教师） | F135: 173 | G135: 34.60 | H135: 76.98 | I135: 30.79 | J135: 65.39 | K135: 3 | L135: 否
A136: 133 | B136: 成磊 | C136: 男 | D136: 0524江口中学 | E136: 22205052433（数学教师） | F136: 170 | G136: 34.00 | H136: 73.20 | I136: 29.28 | J136: 63.28 | K136: 4 | L136: 否
A137: 134 | B137: 蒋令 | C137: 女 | D137: 0524江口中学 | E137: 22205052433（数学教师） | F137: 151 | G137: 30.20 | H137: 77.66 | I137: 31.06 | J137: 61.26 | K137: 5 | L137: 否
A138: 135 | B138: 谯江林 | C138: 女 | D138: 0524江口中学 | E138: 22205052433（数学教师） | F138: 153.5 | G138: 30.70 | H138: 73.68 | I138: 29.47 | J138: 60.17 | K138: 6 | L138: 否
A139: 136 | B139: 冯小曼 | C139: 女 | D139: 0524江口中学 | E139: 22205052434（地理教师） | F139: 169.5 | G139: 33.90 | H139: 83.48 | I139: 33.39 | J139: 67.29 | K139: 1 | L139: 是
A140: 137 | B140: 杨宇航 | C140: 女 | D140: 0524江口中学 | E140: 22205052434（地理教师） | F140: 165.5 | G140: 33.10 | H140: 83.52 | I140: 33.41 | J140: 66.51 | K140: 2 | L140: 否
A141: 138 | B141: 龙林萍 | C141: 女 | D141: 0524江口中学 | E141: 22205052434（地理教师） | F141: 162 | G141: 32.40 | H141: 80.66 | I141: 32.26 | J141: 64.66 | K141: 3 | L141: 否
A142: 139 | B142: 周莹莹 | C142: 女 | D142: 0525江口县初中阶段学校 | E142: 22205052535（语文教师） | F142: 195 | G142: 39.00 | H142: 79.40 | I142: 31.76 | J142: 70.76 | K142: 1 | L142: 是
A143: 140 | B143: 任晓玲 | C143: 女 | D143: 0525江口县初中阶段学校 | E143: 22205052535（语文教师） | F143: 189.5 | G143: 37.90 | H143: 79.12 | I143: 31.65 | J143: 69.55 | K143: 2 | L143: 是
A144: 141 | B144: 张婷 | C144: 女 | D144: 0525江口县初中阶段学校 | E144: 22205052535（语文教师） | F144: 185 | G144: 37.00 | H144: 81.26 | I144: 32.50 | J144: 69.50 | K144: 3 | L144: 是
A145: 142 | B145: 方亚楠 | C145: 女 | D145: 0525江口县初中阶段学校 | E145: 22205052535（语文教师） | F145: 186 | G145: 37.20 | H145: 80.76 | I145: 32.30 | J145: 69.50 | K145: 3 | L145: 是
A146: 143 | B146: 刘亚婷 | C146: 女 | D146: 0525江口县初中阶段学校 | E146: 22205052535（语文教师） | F146: 187.5 | G146: 37.50 | H146: 79.40 | I146: 31.76 | J146: 69.26 | K146: 5 | L146: 是
A147: 144 | B147: 马杰 | C147: 女 | D147: 0525江口县初中阶段学校 | E147: 22205052535（语文教师） | F147: 187 | G147: 37.40 | H147: 79.36 | I147: 31.74 | J147: =G147+I147 -> 69.14 | K147: 6 | L147: 是
A148: 145 | B148: 徐豪 | C148: 男 | D148: 0525江口县初中阶段学校 | E148: 22205052535（语文教师） | F148: 185.5 | G148: 37.10 | H148: 79.80 | I148: 31.92 | J148: 69.02 | K148: 7 | L148: 否
A149: 146 | B149: 付芳艳 | C149: 女 | D149: 0525江口县初中阶段学校 | E149: 22205052535（语文教师） | F149: 184 | G149: 36.80 | H149: 78.62 | I149: 31.45 | J149: 68.25 | K149: 8 | L149: 否
A150: 147 | B150: 周佳成 | C150: 男 | D150: 0525江口县初中阶段学校 | E150: 22205052535（语文教师） | F150: 182.5 | G150: 36.50 | H150: 78.04 | I150: 31.22 | J150: 67.72 | K150: 9 | L150: 否
A151: 148 | B151: 李燕玲 | C151: 女 | D151: 0525江口县初中阶段学校 | E151: 22205052535（语文教师） | F151: 180.5 | G151: 36.10 | H151: 78.84 | I151: 31.54 | J151: 67.64 | K151: 10 | L151: 否
A152: 149 | B152: 龙婷 | C152: 女 | D152: 0525江口县初中阶段学校 | E152: 22205052535（语文教师） | F152: 178.5 | G152: 35.70 | H152: 79.68 | I152: 31.87 | J152: 67.57 | K152: 11 | L152: 否
A153: 150 | B153: 熊佳佳 | C153: 女 | D153: 0525江口县初中阶段学校 | E153: 22205052535（语文教师） | F153: 176 | G153: 35.20 | H153: 80.16 | I153: 32.06 | J153: 67.26 | K153: 12 | L153: 否
A154: 151 | B154: 刘杨 | C154: 女 | D154: 0525江口县初中阶段学校 | E154: 22205052535（语文教师） | F154: 177.5 | G154: 35.50 | H154: 79.24 | I154: 31.70 | J154: 67.20 | K154: 13 | L154: 否
A155: 152 | B155: 何明琴 | C155: 女 | D155: 0525江口县初中阶段学校 | E155: 22205052535（语文教师） | F155: 174.5 | G155: 34.90 | H155: 79.36 | I155: 31.74 | J155: 66.64 | K155: 14 | L155: 否
A156: 153 | B156: 杨燕 | C156: 女 | D156: 0525江口县初中阶段学校 | E156: 22205052535（语文教师） | F156: 173.5 | G156: =(F156/3)*0.6 -> 34.70 | H156: 78.68 | I156: 31.47 | J156: 66.17 | K156: 15 | L156: 否
A157: 154 | B157: 严丽敏 | C157: 女 | D157: 0525江口县初中阶段学校 | E157: 22205052535（语文教师） | F157: 174.5 | G157: 34.90 | H157: 75.82 | I157: 30.33 | J157: 65.23 | K157: 16 | L157: 否
A158: 155 | B158: 严春雨 | C158: 女 | D158: 0525江口县初中阶段学校 | E158: 22205052535（语文教师） | F158: 174 | G158: 34.80 | H158: 75.40 | I158: 30.16 | J158: 64.96 | K158: 17 | L158: 否
A159: 156 | B159: 杨娟琴 | C159: 女 | D159: 0525江口县初中阶段学校 | E159: 22205052535（语文教师） | F159: 186 | G159: 37.20 | H159: 缺考 | I159: 0.00 | J159: 37.20 | K159: 18 | L159: 否
A160: 157 | B160: 符雪娇 | C160: 女 | D160: 0526江口县初中阶段学校 | E160: 22205052636（数学教师） | F160: 181.5 | G160: 36.30 | H160: 82.94 | I160: =H160*0.4 -> 33.18 | J160: 69.48 | K160: 1 | L160: 是
A161: 158 | B161: 冯琴 | C161: 女 | D161: 0526江口县初中阶段学校 | E161: 22205052636（数学教师） | F161: 182 | G161: 36.40 | H161: 81.06 | I161: 32.42 | J161: 68.82 | K161: 2 | L161: 是
A162: 159 | B162: 肖柱 | C162: 男 | D162: 0526江口县初中阶段学校 | E162: 22205052636（数学教师） | F162: 183 | G162: 36.60 | H162: 80.14 | I162: 32.06 | J162: 68.66 | K162: 3 | L162: 是
A163: 160 | B163: 阴琴凤 | C163: 女 | D163: 0526江口县初中阶段学校 | E163: 22205052636（数学教师） | F163: 175 | G163: 35.00 | H163: 82.86 | I163: 33.14 | J163: 68.14 | K163: 4 | L163: 是
A164: 161 | B164: 付娅 | C164: 女 | D164: 0526江口县初中阶段学校 | E164: 22205052636（数学教师） | F164: 174 | G164: 34.80 | H164: 83.06 | I164: 33.22 | J164: 68.02 | K164: 5 | L164: 是
A165: 162 | B165: 田欢 | C165: 女 | D165: 0526江口县初中阶段学校 | E165: 22205052636（数学教师） | F165: 174 | G165: 34.80 | H165: 82.72 | I165: 33.09 | J165: 67.89 | K165: 6 | L165: 是
A166: 163 | B166: 秦榕丹 | C166: 女 | D166: 0526江口县初中阶段学校 | E166: 22205052636（数学教师） | F166: 170.5 | G166: 34.10 | H166: 82.14 | I166: 32.86 | J166: 66.96 | K166: 7 | L166: 是
A167: 164 | B167: 李小霞 | C167: 女 | D167: 0526江口县初中阶段学校 | E167: 22205052636（数学教师） | F167: 170.5 | G167: 34.10 | H167: 82.02 | I167: 32.81 | J167: 66.91 | K167: 8 | L167: 是
A168: 165 | B168: 潘海艳 | C168: 女 | D168: 0526江口县初中阶段学校 | E168: 22205052636（数学教师） | F168: 184 | G168: 36.80 | H168: 75.26 | I168: 30.10 | J168: 66.90 | K168: 9 | L168: 是
A169: 166 | B169: 邱荆川 | C169: 男 | D169: 0526江口县初中阶段学校 | E169: 22205052636（数学教师） | F169: 174.5 | G169: 34.90 | H169: 78.86 | I169: 31.54 | J169: 66.44 | K169: 10 | L169: 否
A170: 167 | B170: 田娟 | C170: 女 | D170: 0526江口县初中阶段学校 | E170: 22205052636（数学教师） | F170: 163.5 | G170: 32.70 | H170: 84.02 | I170: 33.61 | J170: 66.31 | K170: 11 | L170: 否
A171: 168 | B171: 胡毅 | C171: 女 | D171: 0526江口县初中阶段学校 | E171: 22205052636（数学教师） | F171: 170.5 | G171: 34.10 | H171: 79.68 | I171: 31.87 | J171: 65.97 | K171: 12 | L171: 否
A172: 169 | B172: 蔡诺雪 | C172: 女 | D172: 0526江口县初中阶段学校 | E172: 22205052636（数学教师） | F172: 166 | G172: 33.20 | H172: 81.90 | I172: 32.76 | J172: 65.96 | K172: 13 | L172: 否
A173: 170 | B173: 黄倩 | C173: 女 | D173: 0526江口县初中阶段学校 | E173: 22205052636（数学教师） | F173: 160.5 | G173: 32.10 | H173: 84.28 | I173: 33.71 | J173: 65.81 | K173: 14 | L173: 否
A174: 171 | B174: 符开浪 | C174: 男 | D174: 0526江口县初中阶段学校 | E174: 22205052636（数学教师） | F174: 165.5 | G174: 33.10 | H174: 81.12 | I174: 32.45 | J174: 65.55 | K174: 15 | L174: 否
A175: 172 | B175: 田双叶 | C175: 女 | D175: 0526江口县初中阶段学校 | E175: 22205052636（数学教师） | F175: 163 | G175: 32.60 | H175: 82.06 | I175: 32.82 | J175: 65.42 | K175: 16 | L175: 否
A176: 173 | B176: 郭文松 | C176: 男 | D176: 0526江口县初中阶段学校 | E176: 22205052636（数学教师） | F176: 157.5 | G176: 31.50 | H176: 83.84 | I176: 33.54 | J176: 65.04 | K176: 17 | L176: 否
A177: 174 | B177: 刘江恒 | C177: 男 | D177: 0526江口县初中阶段学校 | E177: 22205052636（数学教师） | F177: 164 | G177: 32.80 | H177: 79.64 | I177: 31.86 | J177: 64.66 | K177: 18 | L177: 否
A178: 175 | B178: 简鹏程 | C178: 男 | D178: 0526江口县初中阶段学校 | E178: 22205052636（数学教师） | F178: 163 | G178: 32.60 | H178: 80.12 | I178: 32.05 | J178: 64.65 | K178: 19 | L178: 否
A179: 176 | B179: 张迷 | C179: 女 | D179: 0526江口县初中阶段学校 | E179: 22205052636（数学教师） | F179: 163.5 | G179: 32.70 | H179: 79.56 | I179: 31.82 | J179: 64.52 | K179: 20 | L179: 否
A180: 177 | B180: 丁红丽 | C180: 女 | D180: 0526江口县初中阶段学校 | E180: 22205052636（数学教师） | F180: 165.5 | G180: 33.10 | H180: 78.22 | I180: 31.29 | J180: 64.39 | K180: 21 | L180: 否
A181: 178 | B181: 程进芳 | C181: 女 | D181: 0526江口县初中阶段学校 | E181: 22205052636（数学教师） | F181: 162.5 | G181: 32.50 | H181: 79.06 | I181: 31.62 | J181: 64.12 | K181: 22 | L181: 否
A182: 179 | B182: 黎雪 | C182: 女 | D182: 0526江口县初中阶段学校 | E182: 22205052636（数学教师） | F182: 166 | G182: 33.20 | H182: 76.76 | I182: 30.70 | J182: 63.90 | K182: 23 | L182: 否
A183: 180 | B183: 田滨琦 | C183: 男 | D183: 0526江口县初中阶段学校 | E183: 22205052636（数学教师） | F183: 163.5 | G183: 32.70 | H183: 77.66 | I183: 31.06 | J183: 63.76 | K183: 24 | L183: 否
A184: 181 | B184: 谢永琴 | C184: 女 | D184: 0526江口县初中阶段学校 | E184: 22205052636（数学教师） | F184: 165 | G184: 33.00 | H184: 76.76 | I184: 30.70 | J184: 63.70 | K184: 25 | L184: 否
A185: 182 | B185: 田雪琴 | C185: 女 | D185: 0526江口县初中阶段学校 | E185: 22205052636（数学教师） | F185: 161.5 | G185: 32.30 | H185: 76.96 | I185: 30.78 | J185: 63.08 | K185: 26 | L185: 否
A186: 183 | B186: 何丽 | C186: 女 | D186: 0526江口县初中阶段学校 | E186: 22205052636（数学教师） | F186: 157.5 | G186: 31.50 | H186: 78.60 | I186: 31.44 | J186: 62.94 | K186: 27 | L186: 否
A187: 184 | B187: 叶晶晶 | C187: 女 | D187: 0526江口县初中阶段学校 | E187: 22205052636（数学教师） | F187: 157.5 | G187: 31.50 | H187: 76.40 | I187: 30.56 | J187: 62.06 | K187: 28 | L187: 否
A188: 185 | B188: 龙香 | C188: 女 | D188: 0526江口县初中阶段学校 | E188: 22205052636（数学教师） | F188: 158.5 | G188: 31.70 | H188: 缺考 | I188: 0.00 | J188: 31.70 | K188: 29 | L188: 否
A189: 186 | B189: 刘天芝 | C189: 女 | D189: 0527江口县初中阶段学校 | E189: 22205052737（英语教师） | F189: 190.5 | G189: 38.10 | H189: 81.08 | I189: =H189*0.4 -> 32.43 | J189: 70.53 | K189: 1 | L189: 是
A190: 187 | B190: 杨韩莲 | C190: 女 | D190: 0527江口县初中阶段学校 | E190: 22205052737（英语教师） | F190: 188 | G190: 37.60 | H190: 82.30 | I190: 32.92 | J190: 70.52 | K190: 2 | L190: 是
A191: 188 | B191: 张唯一 | C191: 女 | D191: 0527江口县初中阶段学校 | E191: 22205052737（英语教师） | F191: 184 | G191: 36.80 | H191: 82.60 | I191: 33.04 | J191: 69.84 | K191: 3 | L191: 是
A192: 189 | B192: 白卉 | C192: 女 | D192: 0527江口县初中阶段学校 | E192: 22205052737（英语教师） | F192: 187 | G192: 37.40 | H192: 81.02 | I192: 32.41 | J192: 69.81 | K192: 4 | L192: 是
A193: 190 | B193: 田卓冉 | C193: 女 | D193: 0527江口县初中阶段学校 | E193: 22205052737（英语教师） | F193: 189 | G193: 37.80 | H193: 79.94 | I193: 31.98 | J193: 69.78 | K193: 5 | L193: 是
A194: 191 | B194: 温琪 | C194: 女 | D194: 0527江口县初中阶段学校 | E194: 22205052737（英语教师） | F194: 184 | G194: 36.80 | H194: 81.38 | I194: 32.55 | J194: 69.35 | K194: 6 | L194: 是
A195: 192 | B195: 涂雪倩 | C195: 女 | D195: 0527江口县初中阶段学校 | E195: 22205052737（英语教师） | F195: 187.5 | G195: 37.50 | H195: 79.06 | I195: 31.62 | J195: 69.12 | K195: 7 | L195: 否
A196: 193 | B196: 王沙沙 | C196: 女 | D196: 0527江口县初中阶段学校 | E196: 22205052737（英语教师） | F196: 176.5 | G196: 35.30 | H196: 84.16 | I196: 33.66 | J196: 68.96 | K196: 8 | L196: 否
A197: 194 | B197: 谭寅秀 | C197: 女 | D197: 0527江口县初中阶段学校 | E197: 22205052737（英语教师） | F197: 181.5 | G197: 36.30 | H197: 81.10 | I197: 32.44 | J197: 68.74 | K197: 9 | L197: 否
A198: 195 | B198: 吴柚洁 | C198: 女 | D198: 0527江口县初中阶段学校 | E198: 22205052737（英语教师） | F198: 187 | G198: 37.40 | H198: 78.20 | I198: 31.28 | J198: 68.68 | K198: 10 | L198: 否
A199: 196 | B199: 熊凌 | C199: 女 | D199: 0527江口县初中阶段学校 | E199: 22205052737（英语教师） | F199: 186 | G199: 37.20 | H199: 78.10 | I199: 31.24 | J199: 68.44 | K199: 11 | L199: 否
A200: 197 | B200: 冯沙沙 | C200: 女 | D200: 0527江口县初中阶段学校 | E200: 22205052737（英语教师） | F200: 176 | G200: 35.20 | H200: 82.40 | I200: 32.96 | J200: 68.16 | K200: 12 | L200: 否
... 115 more rows
